fUSD/lending_fUSD_20241122
["ID","MTS","AMOUNT","RATE_DAILY","PERIOD"]
[343057192,1732318186536,500.0,0.00079452,120]
[343057193,1732318186810,500.0,0.00079452,120]
[343057194,1732318187073,626.13,0.00079452,120]
[343057197,1732318201804,150.0,0.00052632,9]
[343057198,1732318203208,400.0,0.000537,120]
[343057199,1732318203438,200.0,0.000539,120]
[343057200,1732318203470,200.0,0.000542,120]
[343057201,1732318203505,200.0,0.000543,120]
[343057202,1732318204325,2000.0,0.00085,30]
[343057203,1732318206529,742.0,0.00054795,120]
[343057204,1732318207606,200.0,0.00085,30]
[343057205,1732318209343,734.0,0.00054795,120]
[343057206,1732318210670,151.51,0.00054,120]
[343057207,1732318210761,151.51,0.00054,120]
[343057208,1732318210855,151.51,0.00054,120]
[343057209,1732318210949,151.51,0.00054,120]
[343057210,1732318211037,151.51,0.00054,120]
[343057211,1732318211228,151.51,0.00054,120]
[343057212,1732318211326,151.51,0.00054,120]
[343057213,1732318211426,151.51,0.00054,120]
[343057214,1732318211522,151.51,0.00054,120]
[343057215,1732318211713,151.51,0.00054,120]
[343057216,1732318211857,151.51,0.00054,120]
[343057217,1732318211912,151.51,0.00054,120]
[343057218,1732318212002,151.51,0.00054,120]
[343057219,1732318212091,151.51,0.00054,120]
[343057220,1732318212181,151.51,0.00054,120]
[343057221,1732318212275,151.51,0.00054,120]
[343057222,1732318212372,151.51,0.00054,120]
[343057223,1732318212465,151.51,0.00054,120]
[343057224,1732318212554,151.51,0.00054,120]
[343057225,1732318212680,151.51,0.00054,120]
[343057226,1732318212773,151.51,0.00054,120]
[343057227,1732318212867,151.51,0.00054,120]
[343057228,1732318212972,151.51,0.00054,120]
[343057229,1732318213068,151.51,0.00054,120]
[343057230,1732318213166,151.51,0.00054,120]
[343057231,1732318213269,151.51,0.00054,120]
[343057232,1732318213370,151.51,0.00054,120]
[343057233,1732318213479,151.51,0.00054,120]
[343057234,1732318213566,151.51,0.00054,120]
[343057235,1732318213663,151.51,0.00054,120]
[343057236,1732318213749,151.51,0.00054,120]
[343057237,1732318213838,151.51,0.00054,120]
[343057238,1732318213924,151.51,0.00054,120]
[343057239,1732318214023,151.51,0.00054,120]
[343057240,1732318214112,151.51,0.00054,120]
[343057241,1732318214200,151.51,0.00054,120]
[343057242,1732318214287,151.51,0.00054,120]
[343057243,1732318214405,151.51,0.00054,120]
[343057244,1732318214530,151.51,0.00054,120]
[343057245,1732318214655,151.51,0.00054,120]
[343057246,1732318214771,151.51,0.00054,120]
[343057247,1732318214863,151.51,0.00054,120]
[343057248,1732318214953,151.51,0.00054,120]
[343057249,1732318214979,500.0,0.00079452,120]
[343057250,1732318215041,151.51,0.00054,120]
[343057251,1732318215129,151.51,0.00054,120]
[343057252,1732318215218,151.51,0.00054,120]
[343057253,1732318215247,500.0,0.00079452,120]
[343057254,1732318215494,151.51,0.00054,120]
[343057255,1732318215588,151.51,0.00054,120]
[343057256,1732318215711,151.51,0.00054,120]
[343057257,1732318215831,151.51,0.00054,120]
[343057258,1732318215858,521.4918054,0.00079452,120]
[343057259,1732318215928,151.51,0.00054,120]
[343057260,1732318216026,151.51,0.00054,120]
[343057261,1732318216056,500.0,0.00079452,120]
[343057262,1732318216115,151.51,0.00054,120]
[343057263,1732318216215,151.51,0.00054,120]
[343057264,1732318216317,151.51,0.00054,120]
[343057265,1732318216348,500.0,0.00079452,120]
[343057266,1732318216408,151.51,0.00054,120]
[343057267,1732318216508,151.51,0.00054,120]
[343057268,1732318216591,151.51,0.00054,120]
[343057269,1732318216688,151.51,0.00054,120]
[343057270,1732318216786,151.51,0.00054,120]
[343057271,1732318216877,151.51,0.00054,120]
[343057272,1732318216970,151.51,0.00054,120]
[343057273,1732318217063,151.51,0.00054,120]
[343057274,1732318217154,151.51,0.00054,120]
[343057275,1732318217241,151.51,0.00054,120]
[343057276,1732318217328,151.51,0.00054,120]
[343057277,1732318217417,151.51,0.00054,120]
[343057278,1732318217596,151.51,0.00054,120]
[343057279,1732318217694,151.51,0.00054,120]
[343057280,1732318217795,151.51,0.00054,120]
[343057281,1732318217885,151.51,0.00054,120]
[343057282,1732318217913,500.0,0.00079452,120]
[343057283,1732318217972,151.51,0.00054,120]
[343057284,1732318218066,151.51,0.00054,120]
[343057285,1732318218158,151.51,0.00054,120]
[343057286,1732318218242,151.51,0.00054,120]
[343057287,1732318218274,1179.94459092,0.00052538,49]
[343057288,1732318218333,151.51,0.00054,120]
[343057289,1732318218509,151.51,0.00054,120]
[343057290,1732318218541,151.51,0.00054,120]
[343057291,1732318218604,151.51,0.00054,120]
[343057292,1732318218697,151.51,0.00054,120]
[343057293,1732318218797,151.51,0.00054,120]
[343057294,1732318218888,151.51,0.00054,120]
[343057295,1732318218982,151.51,0.00054,120]
[343057296,1732318219077,151.51,0.00054,120]
[343057297,1732318219169,151.51,0.00054,120]
[343057298,1732318219197,841.09750646,0.00052538,24]
[343057299,1732318219263,151.51,0.00054,120]
[343057300,1732318219355,151.51,0.00054,120]
[343057301,1732318219452,151.51,0.00054,120]
[343057302,1732318219541,151.51,0.00054,120]
[343057303,1732318219639,151.51,0.00054,120]
[343057304,1732318219728,151.51,0.00054,120]
[343057305,1732318219821,151.51,0.00054,120]
[343057306,1732318228244,500.0,0.00079452,120]
[343057307,1732318228463,536.96,0.00079452,120]
[343057326,1732318232375,-1921.98,0.00052638,30]
[343057327,1732318232500,-5023.54568336,0.00052638,30]
[343057328,1732318232512,-1458.8,0.00052638,30]
[343057329,1732318232583,-2616.77,0.00052638,30]
[343057330,1732318232610,-677.59536334,0.00052638,30]
[343057331,1732318232625,-6854.84799751,0.00052638,30]
[343057332,1732318232860,-17445.50827788,0.00052638,30]
[343057333,1732318232872,-2378.39327469,0.00052638,30]
[343057335,1732318232883,-2275.93278,0.00052638,30]
[343057337,1732318232898,-2721.26105739,0.00052638,30]
[343057339,1732318232912,-397.92779334,0.00052638,30]
[343057342,1732318232923,-12249.11790945,0.00052638,30]
[343057344,1732318232935,-6023.72737881,0.00052638,30]
[343057346,1732318232949,-6674.23832769,0.00052638,30]
[343057348,1732318232960,-3672.96078385,0.00052638,30]
[343057351,1732318232971,-6244.48352013,0.00052638,30]
[343057353,1732318232982,-1615.03160098,0.00052638,30]
[343057355,1732318232992,-1041.76047077,0.00052638,30]
[343057357,1732318233003,-541.12784328,0.00052638,30]
[343057359,1732318233014,-6220.0,0.00052638,30]
[343057361,1732318233025,-519.86839141,0.00052638,30]
[343057365,1732318237335,500.0,0.00079452,120]
[343057370,1732318238418,-93056.3904469,0.00052638,30]
[343057371,1732318238450,500.0,0.00079452,120]
[343057372,1732318238610,-387.9297,0.00052638,30]
[343057373,1732318238626,-148949.45632017,0.00052638,30]
[343057374,1732318238638,-35908.37047652,0.00052638,30]
[343057375,1732318238652,-61695235.423475,0.00052638,30]
[343057376,1732318238677,-1799.93708515,0.00052638,30]
[343057387,1732318240423,-283.00942534,0.00052638,30]
[343057388,1732318240436,-13008.0750506,0.00052638,30]
[343057389,1732318240448,-274.67803165,0.00052638,30]
[343057390,1732318240461,-1842.96111231,0.00052638,30]
[343057391,1732318240473,-325.78060638,0.00052638,30]
[343057392,1732318240506,-73169.33798284,0.00052638,30]
[343057402,1732318243859,-470.69100913,0.00052638,30]
[343057404,1732318244125,-53808.62922,0.00052638,30]
[343057405,1732318244137,-1317.74340095,0.00052638,30]
[343057407,1732318244148,-5684.02798513,0.00052638,30]
[343057417,1732318246574,-336472.87757337,0.00052638,30]
[343057418,1732318246585,-1103.5660297,0.00052638,30]
[343057419,1732318246603,-13465.84555321,0.00052638,30]
[343057420,1732318246724,-12417.88478877,0.00052638,30]
[343057421,1732318246761,-492.83034459,0.00052638,30]
[343057422,1732318246812,-1311.37419212,0.00052638,30]
[343057428,1732318247513,375733.55516857,0.000598,120]
[343057429,1732318247536,124265.44483143,0.000598,120]
[343057430,1732318248597,177.83601469,0.00079452,120]
[343057431,1732318252578,500.0,0.00079452,120]
[343057432,1732318252813,500.0,0.00079452,120]
[343057433,1732318253077,158.00984912,0.00079452,120]
[343057434,1732318255720,500.0,0.00079452,120]
[343057435,1732318256033,500.0,0.00079452,120]
[343057436,1732318256619,542.0806193,0.00079452,120]
[343057437,1732318258182,150.0,0.00052612,7]
[343057438,1732318258380,150.0,0.00052503,7]
[343057439,1732318258432,150.0,0.00052568,7]
[343057440,1732318258606,200.0,0.000523,19]
[343057441,1732318258683,150.0,0.00052491,7]
[343057442,1732318259040,150.0,0.00052465,7]
[343057443,1732318259079,150.0,0.00052607,7]
[343057444,1732318259127,150.0,0.00052552,7]
[343057445,1732318259185,150.0,0.00052465,7]
[343057446,1732318259241,150.0,0.00052633,7]
[343057447,1732318259281,150.0,0.00052519,7]
[343057448,1732318259339,150.0,0.0005261,7]
[343057449,1732318259414,150.0,0.00052547,7]
[343057450,1732318259456,150.0,0.00052432,7]
[343057451,1732318259530,150.0,0.00052547,7]
[343057452,1732318259591,150.0,0.00052602,7]
[343057453,1732318259686,150.0,0.00052605,7]
[343057454,1732318259734,150.0,0.00052468,7]
[343057455,1732318259791,150.0,0.00052373,7]
[343057456,1732318259870,150.0,0.00052422,7]
[343057457,1732318259923,150.0,0.00052492,7]
[343057458,1732318259985,150.0,0.000524,7]
[343057459,1732318260175,150.0,0.00052416,7]
[343057460,1732318260214,150.0,0.00052464,7]
[343057461,1732318260281,150.0,0.00052411,7]
[343057462,1732318260333,150.0,0.00052491,7]
[343057463,1732318260371,150.0,0.0005248,7]
[343057464,1732318260414,150.0,0.00052374,7]
[343057465,1732318260680,150.0,0.00052516,7]
[343057466,1732318260709,500.0,0.000524,19]
[343057467,1732318260739,150.0,0.00052602,7]
[343057468,1732318260789,150.0,0.00052489,7]
[343057469,1732318260875,150.0,0.00052364,7]
[343057470,1732318260914,-10000000.0,0.00052638,30]
[343057471,1732318260947,150.0,0.00052432,7]
[343057472,1732318260988,150.0,0.00052481,7]
[343057473,1732318261044,150.0,0.00052619,7]
[343057474,1732318261075,150.0,0.00052368,7]
[343057475,1732318261116,150.0,0.00052586,7]
[343057476,1732318261152,150.0,0.00052625,7]
[343057477,1732318261183,150.0,0.00052616,7]
[343057478,1732318261221,150.0,0.0005258,7]
[343057479,1732318261279,150.0,0.000525,7]
[343057480,1732318261469,150.0,0.0005258,7]
[343057481,1732318261500,150.0,0.00052579,7]
[343057482,1732318261529,150.0,0.00052406,7]
[343057483,1732318261556,150.0,0.00052588,7]
[343057484,1732318261586,150.0,0.00052614,7]
[343057485,1732318261627,150.0,0.00052392,7]
[343057486,1732318261688,150.0,0.00052553,7]
[343057487,1732318261749,150.0,0.0005246,7]
[343057488,1732318261878,150.0,0.00052408,7]
[343057489,1732318261944,150.0,0.00052477,7]
[343057490,1732318261993,150.0,0.00052397,7]
[343057491,1732318262042,150.0,0.00052419,7]
[343057492,1732318262109,150.0,0.00052612,7]
[343057493,1732318262167,150.0,0.00052587,7]
[343057494,1732318262223,150.0,0.00052584,7]
[343057495,1732318262271,150.0,0.00052503,7]
[343057496,1732318262319,150.0,0.0005257,7]
[343057497,1732318262382,150.0,0.00052372,7]
[343057498,1732318262478,150.0,0.00052507,7]
[343057499,1732318262743,150.0,0.000525,7]
[343057500,1732318262777,150.0,0.00052367,7]
[343057501,1732318262804,700.0,0.000525,19]
[343057502,1732318262831,500.0,0.00079452,120]
[343057503,1732318262978,150.0,0.00052534,7]
[343057504,1732318263047,150.0,0.00052626,7]
[343057505,1732318263087,150.0,0.00052559,7]
[343057506,1732318263114,197.54503173,0.00079452,120]
[343057507,1732318263146,150.0,0.00052444,7]
[343057508,1732318263279,150.0,0.00052379,7]
[343057509,1732318263334,150.0,0.00052573,7]
[343057510,1732318263482,150.0,0.00052365,7]
[343057511,1732318263537,150.0,0.00052604,7]
[343057512,1732318263598,150.0,0.00052404,7]
[343057513,1732318263665,150.0,0.00052387,7]
[343057514,1732318263734,150.0,0.00052455,7]
[343057515,1732318263807,150.0,0.00052555,7]
[343057516,1732318263847,150.0,0.000526,7]
[343057517,1732318263901,150.0,0.00052605,7]
[343057518,1732318263935,150.0,0.00052454,7]
[343057519,1732318264189,150.0,0.00052373,7]
[343057520,1732318264369,150.0,0.00052597,7]
[343057521,1732318264426,150.0,0.00052368,7]
[343057522,1732318264493,150.0,0.00052466,7]
[343057523,1732318264537,150.0,0.0005256,7]
[343057524,1732318264900,1000.0,0.000526,19]
[343057525,1732318265992,300.0,0.0005246,7]
[343057526,1732318267027,1200.0,0.000527,19]
[343057527,1732318267590,2241.87482835,0.00052538,15]
[343057528,1732318269147,200.0,0.000528,19]
[343057529,1732318271262,200.0,0.000529,19]
[343057530,1732318272406,-1100000.0,0.00052638,30]
[343057531,1732318272574,2241.87482835,0.00057023,15]
[343057532,1732318277578,2241.87482835,0.00061507,15]
[343057533,1732318280925,14879.88035495,0.00066,30]
[343057534,1732318282027,-85138.34755931,0.00052638,30]
[343057535,1732318282055,-368.91748,0.00052638,120]
[343057536,1732318291731,3061.60448251,0.00054,2]
[343057537,1732318309018,5247.2827753,0.00053,30]
[343057538,1732318318475,11621.77452483,0.00052538,2]
[343057539,1732318321183,500.0,0.00052637,120]
[343057540,1732318321464,500.0,0.00052774,120]
[343057541,1732318321930,300.0,0.00052637,15]
[343057542,1732318322070,500.0,0.00052911,120]
[343057543,1732318322346,500.0,0.00053048,120]
[343057544,1732318322952,500.0,0.00053185,120]
[343057545,1732318323224,500.0,0.00053322,120]
[343057546,1732318323500,500.0,0.00053459,120]
[343057547,1732318323830,249.57,0.00053596,120]
[343057548,1732318324452,-1993.17655217,0.00065999,120]
[343057549,1732318324512,-1780.47312997,0.00066,120]
[343057550,1732318324562,-49996226.35031786,0.00066,30]
[343057551,1732318351488,-5000000.0,0.00066,30]
[343057552,1732318383204,300.0,0.00052637,9]
[343057553,1732318389358,380.47470734,0.00051407,10]
[343057554,1732318396711,13094.99,0.00051108,7]
[343057555,1732318402609,150.112308,0.00052498,120]
[343057556,1732318408016,4903.82500878,0.00050894,30]
[343057557,1732318408046,5693.17499122,0.00050894,30]
[343057558,1732318408637,890.23656499,0.00052638,120]
[343057560,1732318432891,150.112308,0.00052498,120]
[343057561,1732318438039,150.112308,0.00052498,120]
[343057562,1732318443282,150.112308,0.00052498,120]
[343057563,1732318447802,150.112308,0.00052498,120]
[343057564,1732318470420,50000.0,0.00057,2]
[343057565,1732318471031,250.0,0.00031,2]
[343057566,1732318472116,300.0,0.00033,2]
[343057567,1732318473194,350.0,0.00035,2]
[343057568,1732318474263,400.0,0.00037,2]
[343057569,1732318474415,7669.15,0.00056986,120]
[343057570,1732318474723,7669.15,0.00056986,120]
[343057571,1732318474992,7669.15,0.00056986,120]
[343057572,1732318475239,1041.14,0.00056986,120]
[343057573,1732318475268,7669.15,0.00056986,120]
[343057574,1732318475331,450.0,0.00039,2]
[343057575,1732318475515,7669.15,0.00056986,120]
[343057576,1732318475544,1041.14,0.00056986,120]
[343057577,1732318475782,7669.15,0.00056986,120]
[343057578,1732318475827,1041.14,0.00056986,120]
[343057579,1732318476050,7669.15,0.00056986,120]
[343057580,1732318476094,1041.14,0.00056986,120]
[343057581,1732318476360,1041.14,0.00056986,120]
[343057582,1732318476411,500.0,0.00041,2]
[343057583,1732318476457,7669.15,0.00056986,120]
[343057584,1732318476642,1041.14,0.00056986,120]
[343057585,1732318476730,7669.15,0.00056986,120]
[343057586,1732318477046,7669.15,0.00056986,120]
[343057587,1732318477245,1041.14,0.00056986,120]
[343057588,1732318477319,7669.15,0.00056986,120]
[343057589,1732318477465,168.112308,0.00052498,120]
[343057590,1732318477495,550.0,0.00043,2]
[343057591,1732318477657,7669.15,0.00056986,120]
[343057592,1732318477937,7669.15,0.00056986,120]
[343057593,1732318478211,7669.15,0.00056986,120]
[343057594,1732318478467,7669.15,0.00056986,120]
[343057595,1732318478631,1041.14,0.00056986,120]
[343057596,1732318478747,7669.15,0.00056986,120]
[343057597,1732318478917,1041.14,0.00056986,120]
[343057598,1732318479105,7669.15,0.00056986,120]
[343057599,1732318479233,1041.14,0.00056986,120]
[343057600,1732318479291,7669.15,0.00056986,120]
[343057601,1732318479562,7669.15,0.00056986,120]
[343057602,1732318479686,1041.14,0.00056986,120]
[343057603,1732318479862,7669.15,0.00056986,120]
[343057604,1732318479938,1041.14,0.00056986,120]
[343057605,1732318480210,1041.14,0.00056986,120]
[343057606,1732318480477,1041.14,0.00056986,120]
[343057607,1732318480742,1041.14,0.00056986,120]
[343057608,1732318480812,7669.15,0.00056986,120]
[343057609,1732318481017,1041.14,0.00056986,120]
[343057610,1732318481079,7669.15,0.00056986,120]
[343057611,1732318481317,1041.14,0.00056986,120]
[343057612,1732318481371,7669.15,0.00056986,120]
[343057613,1732318481622,1041.14,0.00056986,120]
[343057614,1732318481659,7669.36189366,0.00056986,120]
[343057615,1732318481870,1041.14,0.00056986,120]
[343057616,1732318482134,1041.14,0.00056986,120]
[343057617,1732318482455,1041.14,0.00056986,120]
[343057618,1732318482741,1041.14,0.00056986,120]
[343057619,1732318483068,1041.14,0.00056986,120]
[343057620,1732318483340,1041.22777307,0.00056986,120]
[343057621,1732318487323,500.0,0.00056986,120]
[343057622,1732318487597,500.0,0.00056986,120]
[343057623,1732318488101,500.0,0.00056986,120]
[343057624,1732318488400,500.0,0.00056986,120]
[343057625,1732318488683,500.0,0.00056986,120]
[343057626,1732318488976,500.0,0.00056986,120]
[343057627,1732318489307,500.0,0.00056986,120]
[343057628,1732318489566,491.76424,0.00056986,120]
[343057629,1732318491017,595.5,0.00051398,10]
[343057630,1732318493152,500.0,0.00053221,2]
[343057631,1732318493185,500.0,0.00052673,2]
[343057632,1732318501743,-7746.83438488,0.00064,120]
[343057633,1732318501771,-492253.16561512,0.00066,30]
[343057634,1732318502200,532.12941968,0.00051308,2]
[343057635,1732318502463,1833.10921667,0.000526,110]
[343057636,1732318503194,200.0,0.00054,120]
[343057637,1732318503261,200.0,0.000543,120]
[343057638,1732318503300,400.0,0.000537,120]
[343057639,1732318503365,200.0,0.000539,120]
[343057640,1732318503457,200.0,0.000541,120]
[343057641,1732318510006,482.97201874,0.00057,21]
[343057642,1732318510250,1147.0,0.00057,120]
[343057643,1732318510519,1147.0,0.00057,120]
[343057644,1732318510787,1147.0,0.00057,120]
[343057645,1732318511043,1147.0,0.00057,120]
[343057646,1732318511312,1147.0,0.00057,120]
[343057647,1732318511587,1147.0,0.00057,120]
[343057648,1732318511851,1147.0,0.00057,120]
[343057649,1732318512152,1147.0,0.00057,120]
[343057650,1732318512408,1147.0,0.00057,120]
[343057651,1732318512684,1147.0,0.00057,120]
[343057652,1732318512810,188.36022971,0.00051308,120]
[343057653,1732318513139,1147.0,0.00057,120]
[343057654,1732318513452,1147.0,0.00057,120]
[343057655,1732318513688,1147.0,0.00057,120]
[343057656,1732318513952,1147.0,0.00057,120]
[343057657,1732318513984,1202.16,0.00057,120]
[343057658,1732318514245,1202.16,0.00057,120]
[343057659,1732318514278,1147.0,0.00057,120]
[343057660,1732318514501,1202.16,0.00057,120]
[343057661,1732318514551,1147.0,0.00057,120]
[343057662,1732318514785,1202.16,0.00057,120]
[343057663,1732318514827,1147.0,0.00057,120]
[343057664,1732318515098,1202.16,0.00057,120]
[343057665,1732318515129,1147.0,0.00057,120]
[343057666,1732318515372,1202.16,0.00057,120]
[343057667,1732318515407,1147.0,0.00057,120]
[343057668,1732318515648,1202.16,0.00057,120]
[343057669,1732318515678,1147.0,0.00057,120]
[343057670,1732318515806,486.47578553,0.00054794,120]
[343057671,1732318515929,1202.16,0.00057,120]
[343057672,1732318515966,1147.0,0.00057,120]
[343057673,1732318516247,1147.0,0.00057,120]
[343057674,1732318516500,1202.16,0.00057,120]
[343057675,1732318516548,1147.0,0.00057,120]
[343057676,1732318516776,1202.16,0.00057,120]
[343057677,1732318516817,1147.20708343,0.00057,120]
[343057678,1732318517035,1202.16,0.00057,120]
[343057679,1732318517324,1202.16,0.00057,120]
[343057680,1732318517596,1202.16,0.00057,120]
[343057681,1732318517871,1202.16,0.00057,120]
[343057682,1732318518175,1202.16,0.00057,120]
[343057683,1732318518549,1202.16,0.00057,120]
[343057684,1732318518832,1202.16,0.00057,120]
[343057685,1732318519104,1202.16,0.00057,120]
[343057686,1732318519465,1202.16,0.00057,120]
[343057687,1732318519815,1202.16,0.00057,120]
[343057688,1732318520147,1202.16,0.00057,120]
[343057689,1732318520428,1202.16,0.00057,120]
[343057690,1732318520683,1202.16,0.00057,120]
[343057691,1732318520949,1202.33286156,0.00057,120]
[343057692,1732318522383,500.0,0.00057,120]
[343057693,1732318522664,500.0,0.00057,120]
[343057694,1732318522981,500.0,0.00057,120]
[343057695,1732318523121,500.0,0.00057,120]
[343057696,1732318523261,500.0,0.00057,120]
[343057697,1732318523399,500.0,0.00057,120]
[343057698,1732318523533,500.0,0.00057,120]
[343057699,1732318523837,500.0,0.00057,120]
[343057700,1732318523876,500.0,0.00057,120]
[343057701,1732318524057,500.0,0.00057,120]
[343057702,1732318524270,500.0,0.00057,120]
[343057703,1732318524326,500.0,0.00057,120]
[343057704,1732318524596,500.0,0.00057,120]
[343057705,1732318524868,500.0,0.00057,120]
[343057706,1732318525136,500.0,0.00057,120]
[343057707,1732318525394,500.0,0.00057,120]
[343057708,1732318525676,500.0,0.00057,120]
[343057709,1732318525935,500.0,0.00057,120]
[343057710,1732318526059,500.0,0.00057,120]
[343057711,1732318526200,500.0,0.00057,120]
[343057712,1732318526336,500.0,0.00057,120]
[343057713,1732318526465,500.0,0.00057,120]
[343057714,1732318526624,500.0,0.00057,120]
[343057715,1732318526785,500.0,0.00057,120]
[343057716,1732318526886,500.0,0.00057,120]
[343057717,1732318527159,597.5687195,0.00057,120]
[343057718,1732318527742,500.0,0.00057,120]
[343057719,1732318528096,500.0,0.00057,2]
[343057720,1732318528214,445.11828249,0.00051408,120]
[343057721,1732318528371,500.0,0.00057,2]
[343057722,1732318528401,500.0,0.00057,120]
[343057723,1732318528689,500.0,0.00057,2]
[343057724,1732318528722,500.0,0.00057,120]
[343057725,1732318528953,577.17848904,0.00057,2]
[343057726,1732318529094,500.0,0.00057,120]
[343057727,1732318529308,2463.9612072,0.00051308,30]
[343057728,1732318529554,500.0,0.00057,120]
[343057729,1732318529921,500.0,0.00057,120]
[343057730,1732318532899,266.29054046,0.00057,120]
[343057731,1732318535052,388.48416618,0.00051308,2]
[343057732,1732318537401,4745.43655471,0.00051308,2]
[343057733,1732318538113,1532.25,0.00057,120]
[343057734,1732318538387,1532.25,0.00057,120]
[343057735,1732318538706,1532.25,0.00057,120]
[343057736,1732318538993,1532.25,0.00057,120]
[343057737,1732318539278,1532.25,0.00057,120]
[343057738,1732318539544,1532.25,0.00057,120]
[343057739,1732318539858,1532.25,0.00057,120]
[343057740,1732318540149,1532.25,0.00057,120]
[343057741,1732318540429,1532.25,0.00057,120]
[343057742,1732318540700,1532.25,0.00057,120]
[343057743,1732318540979,1532.25,0.00057,120]
[343057744,1732318541273,1532.25,0.00057,120]
[343057745,1732318541556,1532.25,0.00057,120]
[343057746,1732318542153,1532.25,0.00057,120]
[343057747,1732318542439,1532.25,0.00057,120]
[343057748,1732318542751,1532.25,0.00057,120]
[343057749,1732318543006,1532.25,0.00057,120]
[343057750,1732318543304,1532.25,0.00057,120]
[343057751,1732318543586,1532.25,0.00057,120]
[343057752,1732318543894,1532.25,0.00057,120]
[343057753,1732318544191,1532.25,0.00057,120]
[343057754,1732318544480,1532.25,0.00057,120]
[343057755,1732318544785,1532.25,0.00057,120]
[343057756,1732318545063,1532.37646641,0.00057,120]
[343057757,1732318552709,500.0,0.00057,120]
[343057758,1732318557160,500.0,0.00057,120]
[343057759,1732318561237,700.0,0.00051407,15]
[343057760,1732318561767,450.0,0.00051407,9]
[343057761,1732318561978,979.0,0.00054183,15]
[343057762,1732318568321,500.0,0.00057,120]
[343057763,1732318573511,804.55,0.00057,120]
[343057764,1732318573818,804.55,0.00057,120]
[343057765,1732318574111,804.55,0.00057,120]
[343057766,1732318574401,804.55,0.00057,120]
[343057767,1732318574798,804.55,0.00057,120]
[343057768,1732318575110,804.55,0.00057,120]
[343057769,1732318575372,804.55,0.00057,120]